bitfinex/quotes_BTCUSD_20250522
["timestamp","ask_amount","ask_price","bid_price","bid_amount"]
[1747930634648,1.07317299,111700.0,111690.0,0.35684]
[1747930634857,1.07317299,111700.0,111690.0,0.62516]
[1747930635065,1.07317299,111700.0,111690.0,4e-05]
[1747930635289,1.06481882,111700.0,111690.0,0.6244]
[1747930635435,1.07316258,111700.0,111690.0,0.6244]
[1747930635635,1.16268409,111700.0,111690.0,0.6244]
[1747930636068,1.16268409,111700.0,111690.0,4e-05]
[1747930636296,1.15368409,111700.0,111690.0,4e-05]
[1747930636511,1.15368409,111700.0,111690.0,0.2684]
[1747930636882,1.24805409,111700.0,111690.0,4e-05]
[1747930637101,0.63243168,111680.0,111670.0,0.3864]
[1747930637333,1.16214033,111680.0,111670.0,1.01084]
[1747930637538,1.15214033,111680.0,111670.0,0.3864]
[1747930637751,0.720321,111680.0,111670.0,0.3864]
[1747930637959,1.09445843,111680.0,111670.0,0.65476]
[1747930638821,0.74381685,111680.0,111670.0,0.65476]
[1747930639041,1.09745843,111680.0,111670.0,0.65476]
[1747930639254,1.09745843,111680.0,111670.0,1.01092]
[1747930639499,1.18697994,111680.0,111670.0,1.01092]
[1747930640829,1.1955131,111680.0,111670.0,1.01092]
[1747930641660,1.63052468,111680.0,111670.0,1.01092]
[1747930641855,1.27134994,111680.0,111670.0,0.6548]
[1747930642492,0.62559477,111670.0,111660.0,0.35616]
[1747930642702,0.53704376,111650.0,111640.0,0.46063333]
[1747930642919,0.62658932,111650.0,111640.0,2.32164767]
[1747930643127,0.62658932,111650.0,111640.0,1.96548767]
[1747930643301,0.62658932,111650.0,111640.0,2.35264767]
[1747930643446,0.62658932,111650.0,111640.0,2.62104767]
[1747930643652,0.62658932,111650.0,111640.0,2.59004767]
[1747930644093,0.62658932,111650.0,111640.0,2.62104767]
[1747930644905,0.19704376,111650.0,111640.0,3.00398925]
[1747930645126,0.19704376,111650.0,111640.0,3.1831365]
[1747930645353,0.19704376,111650.0,111640.0,3.19209378]
[1747930645576,0.02686597,111660.0,111650.0,0.26989999]
[1747930645783,0.19700823,111670.0,111660.0,0.26988186]
[1747930645996,0.00895439,111670.0,111660.0,2.75878123]
[1747930646213,0.01790862,111670.0,111660.0,2.74982556]
[1747930646419,0.01790878,111670.0,111660.0,2.74982556]
[1747930646648,0.02686349,111670.0,111660.0,2.74982556]
[1747930646851,0.02886309,111670.0,111660.0,2.74982556]
[1747930647073,0.05057115,111670.0,111660.0,2.74982556]
[1747930647276,0.04161636,111670.0,111660.0,2.74982556]
[1747930647491,0.22967028,111670.0,111660.0,2.74087053]
[1747930647701,0.21591813,111670.0,111660.0,1.91924458]
[1747930647928,0.19800887,111670.0,111660.0,1.955148]
[1747930648146,0.19005408,111670.0,111660.0,1.955188]
[1747930648444,0.19005408,111670.0,111660.0,1.330628]
[1747930648633,0.19005408,111670.0,111660.0,1.955188]
[1747930649753,0.19005408,111670.0,111660.0,1.330628]
[1747930650044,0.19005408,111670.0,111660.0,1.955188]
[1747930653947,0.19005408,111670.0,111660.0,1.330628]
[1747930654162,0.19005408,111670.0,111660.0,1.955188]
[1747930654393,0.35852291,111670.0,111660.0,4e-05]
[1747930654628,0.69852291,111670.0,111660.0,0.6246]
[1747930654851,0.62792727,111670.0,111660.0,0.6246]
[1747930655720,0.02823729,111670.0,111660.0,2.17635876]
[1747930655955,0.2101351,111670.0,111660.0,2.19760317]
[1747930656172,0.20733642,111670.0,111660.0,2.19760317]
[1747930656379,0.19838171,111670.0,111660.0,1.955188]
[1747930656623,0.01095471,111670.0,111660.0,2.21551427]
[1747930656828,0.21971681,111670.0,111660.0,2.21551435]
[1747930657044,0.01990918,111670.0,111660.0,2.2244697]
[1747930657267,0.03781812,111670.0,111660.0,2.23342489]
[1747930657462,0.03781812,111670.0,111660.0,2.2244697]
[1747930657721,0.03781812,111670.0,111660.0,2.23342489]
[1747930658128,0.04677371,111670.0,111660.0,2.23342497]
[1747930658443,0.0199091,111670.0,111660.0,2.24238016]
[1747930658657,0.02886349,111670.0,111660.0,2.24238016]
[1747930658868,0.21711781,111670.0,111660.0,2.21551435]
[1747930659121,0.20816334,111670.0,111660.0,2.21551435]
[1747930659332,0.20816334,111670.0,111660.0,2.21551443]
[1747930659542,0.190254,111670.0,111660.0,1.955188]
[1747930660177,0.190254,111670.0,111660.0,1.68664748]
[1747930660596,0.190254,111670.0,111660.0,1.33048748]
[1747930661046,0.190254,111670.0,111660.0,1.68664748]
[1747930661483,0.190254,111670.0,111660.0,1.95504748]
[1747930663519,0.34299956,111670.0,111660.0,1.61726]
[1747930664229,0.31089956,111670.0,111660.0,1.61726]
[1747930664442,0.27979956,111670.0,111660.0,1.61726]
[1747930665064,0.27979956,111670.0,111660.0,0.9927]
[1747930665437,0.27979956,111670.0,111660.0,1.61466]
[1747930668351,0.27979956,111670.0,111660.0,1.60445209]
[1747930668775,0.27979956,111670.0,111660.0,0.98249209]
[1747930668980,0.27979956,111670.0,111660.0,1.60445209]
[1747930669206,0.27979956,111670.0,111660.0,0.98249209]
[1747930669437,0.27979956,111670.0,111660.0,1.60445209]
[1747930669650,0.34339956,111670.0,111660.0,0.2712]
[1747930669860,0.34339956,111670.0,111660.0,0.62196]
[1747930670332,0.31039956,111670.0,111660.0,0.62196]
[1747930670567,0.27979956,111670.0,111660.0,0.62196]
[1747930671227,0.27979956,111670.0,111660.0,1.94224]
[1747930671594,0.190254,111670.0,111660.0,1.97514]
[1747930671818,0.190254,111670.0,111660.0,2.00794]
[1747930673869,0.190254,111670.0,111660.0,1.94224]
[1747930674873,0.190254,111670.0,111660.0,1.32028]
[1747930675083,0.27979956,111670.0,111660.0,1.94224]
[1747930675232,0.27979956,111670.0,111660.0,1.32028]
[1747930675474,0.28817746,111670.0,111660.0,0.85346]
[1747930675716,0.32087746,111670.0,111660.0,0.85346]
[1747930676122,0.28817746,111670.0,111660.0,0.8535]
[1747930678723,0.35287746,111670.0,111660.0,0.622]
[1747930679611,0.35287746,111670.0,111660.0,0.3536]
[1747930679826,0.35287746,111670.0,111660.0,0.622]
[1747930681683,0.35287746,111670.0,111660.0,4e-05]
[1747930681938,0.35287746,111670.0,111660.0,0.622]
[1747930682146,0.35287746,111670.0,111660.0,0.3536]
[1747930682367,0.25127076,111660.0,111650.0,0.74004]
[1747930682595,0.69040496,111660.0,111650.0,0.38648]
[1747930682830,0.34919422,111660.0,111650.0,0.38648]
[1747930683698,0.34919422,111660.0,111650.0,0.65492]
[1747930683916,0.69978286,111660.0,111650.0,0.65492]
[1747930684571,0.69978286,111660.0,111650.0,0.38648]
[1747930684797,0.60108761,111650.0,111640.0,0.62419134]
[1747930685007,1.06476266,111650.0,111640.0,0.62419134]
[1747930685224,1.15266207,111650.0,111640.0,0.62419134]
[1747930685452,1.15262207,111650.0,111640.0,0.62419134]
[1747930685933,1.15262207,111650.0,111640.0,0.27063134]
[1747930686150,1.16572802,111650.0,111640.0,0.27063134]
[1747930686395,1.17430942,111650.0,111640.0,0.27063134]
[1747930686586,1.17830942,111650.0,111640.0,0.27063134]
[1747930688082,0.02454085,111640.0,111590.0,0.0834225]
[1747930688316,0.01792026,111600.0,111590.0,0.26277216]
[1747930688521,0.02968073,111600.0,111590.0,1.93128823]
[1747930688725,0.20889219,111600.0,111590.0,1.92232694]
[1747930688975,0.19713196,111600.0,111590.0,1.92232694]
[1747930689145,0.18817187,111600.0,111590.0,1.74312879]
[1747930689389,0.18817187,111600.0,111590.0,2.01156879]
[1747930689608,0.18817187,111600.0,111590.0,1.38948879]
[1747930689990,0.18817187,111600.0,111590.0,2.19087631]
[1747930690325,0.27771743,111600.0,111590.0,0.62886879]
[1747930690535,0.27771743,111600.0,111590.0,1.01546879]
[1747930690749,0.27771743,111600.0,111590.0,0.39330879]
[1747930690955,0.27771743,111600.0,111590.0,1.01546879]
[1747930691162,0.27771743,111600.0,111590.0,1.01846879]
[1747930691347,0.34301743,111600.0,111590.0,1.01846879]
[1747930691568,0.43019758,111600.0,111590.0,1.01850879]
[1747930691785,0.34301743,111600.0,111590.0,1.01850879]
[1747930692001,0.34301743,111600.0,111590.0,1.01550879]
[1747930692863,0.34301743,111600.0,111590.0,1.01250879]
[1747930693283,0.34301743,111600.0,111590.0,1.01650879]
[1747930693724,0.34301743,111600.0,111590.0,1.01450879]
[1747930694384,0.11642647,111600.0,111590.0,1.25613631]
[1747930694627,0.28947827,111600.0,111590.0,1.07690879]
[1747930694841,0.28667776,111600.0,111590.0,1.01454879]
[1747930696182,0.28667776,111600.0,111590.0,1.01254879]
[1747930696637,0.28667776,111600.0,111590.0,1.04534879]
[1747930696852,0.28667776,111600.0,111590.0,1.04734879]
[1747930697089,0.28667776,111600.0,111590.0,2.54685631]
[1747930697315,0.08954556,111600.0,111590.0,1.95585631]
[1747930697555,0.01095792,111630.0,111620.0,0.17917935]
[1747930697777,0.01095792,111630.0,111610.0,0.2512551]
[1747930697778,0.03583472,111620.0,111610.0,0.2512551]
[1747930697996,0.21501407,111620.0,111610.0,2.1916551]
[1747930698224,0.27966702,111630.0,111620.0,0.17917935]
[1747930698470,0.19907938,111630.0,111620.0,1.53135935]
[1747930698702,0.002,111630.0,111620.0,1.57351815]
[1747930698945,0.002,111630.0,111620.0,1.93143519]
[1747930699661,0.002,111630.0,111620.0,1.95144466]
[1747930700347,0.004,111630.0,111620.0,2.46679802]
[1747930700817,0.002,111630.0,111620.0,2.45369022]
[1747930701272,0.003,111630.0,111620.0,2.45369022]
[1747930701832,0.002,111630.0,111620.0,2.45369022]
[1747930702093,0.002,111650.0,111640.0,0.60971837]
[1747930702305,0.002,111650.0,111640.0,2.93651837]
[1747930702743,0.01095599,111650.0,111640.0,2.92776157]
[1747930702963,0.20184293,111650.0,111640.0,2.667]
[1747930703171,0.28858949,111650.0,111640.0,2.84614725]
[1747930703609,0.28858949,111650.0,111640.0,2.667]
[1747930703815,0.28858949,111650.0,111640.0,2.84614725]
[1747930704925,0.19707906,111630.0,111620.0,0.08620947]
[1747930705141,0.19707906,111630.0,111620.0,2.2965]
[1747930705358,0.19707906,111630.0,111620.0,2.47567935]
[1747930705805,0.1881213,111630.0,111620.0,2.47567935]
[1747930706012,0.1881213,111630.0,111620.0,2.81567935]
[1747930706205,0.1881213,111630.0,111620.0,2.2965]
[1747930706477,0.27766686,111630.0,111620.0,1.0076]
[1747930707134,0.27766686,111630.0,111620.0,0.73912]
[1747930707398,0.27766686,111630.0,111620.0,1.0076]
[1747930708468,0.27766686,111630.0,111620.0,1.0096]
[1747930708933,0.27766686,111630.0,111620.0,0.74112]
[1747930709154,0.34076686,111630.0,111620.0,0.3896]
[1747930709384,0.34076686,111630.0,111620.0,1.0086]
[1747930712260,0.34076686,111630.0,111620.0,1.00864]
[1747930712700,0.31046686,111630.0,111620.0,1.00868]
[1747930713115,0.34256686,111630.0,111620.0,0.7422]
[1747930713327,0.34256686,111630.0,111620.0,1.01068]
[1747930714808,0.31046686,111630.0,111620.0,1.01068]
[1747930715035,0.27766686,111630.0,111620.0,1.01068]
[1747930715700,0.39158695,111630.0,111620.0,0.7422]
[1747930715923,0.6902555,111630.0,111620.0,0.7422]
[1747930716151,0.34066686,111630.0,111620.0,1.01068]
[1747930717053,0.27766686,111630.0,111620.0,1.01068]
[1747930718555,0.01791544,111630.0,111620.0,2.94131527]
[1747930718767,0.21499482,111630.0,111620.0,2.93035687]
[1747930718982,0.19707938,111630.0,111620.0,3.33409823]
[1747930719440,0.19807938,111630.0,111620.0,3.36097423]
[1747930719654,0.01891608,111630.0,111620.0,3.36993279]
[1747930719976,0.18912122,111630.0,111620.0,3.36993279]
[1747930720235,0.04478872,111630.0,111620.0,3.35201511]
[1747930720419,0.20883685,111630.0,111620.0,3.34405703]
[1747930720741,0.19707954,111630.0,111620.0,2.40148]
[1747930720978,0.19707954,111630.0,111620.0,2.50672]
[1747930721420,0.17916157,111640.0,111620.0,2.71599935]
[1747930721662,0.2060373,111630.0,111620.0,1.57045831]
[1747930721865,0.2060373,111630.0,111620.0,2.89969711]
[1747930722073,0.19707946,111630.0,111620.0,2.93069711]
[1747930722482,0.19707946,111630.0,111620.0,2.92173831]
[1747930722656,0.19707946,111630.0,111620.0,2.92073831]
[1747930722894,0.18812146,111630.0,111620.0,2.92073831]
[1747930723097,0.18812146,111630.0,111620.0,2.7346]
[1747930723261,0.1791633,111630.0,111620.0,2.7346]
[1747930723484,0.1791633,111630.0,111620.0,2.24312]
[1747930723702,0.1791633,111630.0,111620.0,2.24308]
[1747930724110,0.1791633,111630.0,111620.0,2.30908]
[1747930724327,0.1791633,111630.0,111620.0,2.50617703]
[1747930724537,0.19987904,111630.0,111620.0,2.50617703]
[1747930724741,0.19707938,111630.0,111620.0,2.50617703]
[1747930724961,0.18812146,111630.0,111620.0,2.27598]
[1747930725199,0.18812146,111630.0,111620.0,2.24308]
[1747930726505,0.18812146,111630.0,111620.0,2.28343896]
[1747930726709,0.18812146,111630.0,111620.0,2.27448]
[1747930728144,0.18812146,111630.0,111620.0,2.24308]
[1747930728340,0.18812146,111630.0,111620.0,1.9746]
[1747930728671,0.18812146,111630.0,111620.0,2.24308]
[1747930729447,0.18812146,111630.0,111620.0,2.30478]
[1747930729661,0.18812146,111630.0,111620.0,2.50187703]
[1747930729873,0.18812146,111630.0,111620.0,2.51083583]
[1747930730106,0.18812146,111630.0,111620.0,2.50187719]
[1747930731066,0.1791633,111630.0,111620.0,2.50187719]
[1747930731280,0.1791633,111630.0,111620.0,2.3087]
[1747930731485,0.1791633,111630.0,111620.0,2.48787935]
[1747930732216,0.1791633,111630.0,111620.0,2.3087]
[1747930732892,0.1791633,111630.0,111620.0,2.49683831]
[1747930733284,0.1791633,111630.0,111620.0,2.3087]
[1747930734886,0.1791633,111630.0,111620.0,2.2774]
[1747930735316,0.1791633,111630.0,111620.0,1.65344]
[1747930735516,0.1791633,111630.0,111620.0,2.2774]
[1747930736312,0.1791633,111630.0,111620.0,2.45657935]
[1747930736585,0.1791633,111630.0,111620.0,2.2774]
[1747930737041,0.1791633,111630.0,111620.0,2.247]
[1747930738886,0.1791633,111630.0,111620.0,1.3546]
[1747930739170,0.18196293,111630.0,111620.0,1.3546]
[1747930739935,0.18196293,111630.0,111620.0,1.53377935]
[1747930740155,0.1791633,111630.0,111620.0,2.85405935]
[1747930740386,0.1791633,111630.0,111620.0,2.89351831]
[1747930741019,0.01791544,111630.0,111620.0,2.96135279]
[1747930741238,0.19707946,111630.0,111620.0,2.92551831]
[1747930741657,0.19707946,111630.0,111620.0,2.73738]
[1747930744014,0.19707946,111630.0,111620.0,2.70538]
[1747930744266,0.19707946,111630.0,111620.0,2.08142]
[1747930744489,0.19707946,111630.0,111620.0,0.74612]
[1747930744490,0.28662502,111630.0,111620.0,0.74612]
[1747930744714,0.28662502,111630.0,111620.0,1.0146]
[1747930745177,0.29500234,111630.0,111620.0,1.0146]
[1747930749299,0.35930234,111630.0,111620.0,1.0146]
[1747930749765,0.41314873,111630.0,111620.0,1.0146]
[1747930750235,0.76273737,111630.0,111620.0,0.39064]
[1747930750467,1.11727822,111630.0,111620.0,0.65912]
[1747930750809,1.12727822,111630.0,111620.0,0.65912]
[1747930751054,0.77768958,111630.0,111620.0,0.65912]
[1747930751282,1.15240881,111630.0,111620.0,0.65912]
[1747930751521,1.13584848,111630.0,111620.0,0.65912]
[1747930751741,1.13584848,111630.0,111620.0,0.65712]
[1747930751974,1.13584848,111630.0,111620.0,0.38864]
[1747930752201,1.1509623,111630.0,111620.0,0.65712]
[1747930752391,1.13684848,111630.0,111620.0,0.00204]
[1747930752635,1.16194849,111630.0,111620.0,0.00204]
[1747930752903,1.15194849,111630.0,111620.0,0.00204]
[1747930753129,0.20711438,111610.0,111600.0,0.35752]
[1747930753379,1.0304202,111610.0,111600.0,0.00215151]
[1747930753600,1.0404202,111610.0,111600.0,0.00215151]
[1747930753820,1.06550145,111610.0,111600.0,0.00215151]
[1747930754283,1.13070145,111610.0,111600.0,0.00215151]
[1747930754502,1.11397103,111610.0,111600.0,0.00215151]
[1747930754640,1.10397103,111610.0,111600.0,0.00215151]
[1747930754871,1.14829731,111610.0,111600.0,0.00215151]
[1747930755353,1.12323996,111610.0,111600.0,0.00215151]
[1747930756825,1.11254129,111610.0,111600.0,0.00215151]
[1747930758292,1.14279362,111610.0,111600.0,0.00215151]
[1747930759344,0.61592958,111590.0,111580.0,0.77767085]
[1747930759553,0.70547514,111590.0,111580.0,0.77767085]
[1747930760409,0.79499665,111590.0,111580.0,1.04627085]
[1747930760864,0.27773429,111590.0,111580.0,1.05099085]
[1747930761317,0.27773429,111590.0,111580.0,1.08409085]
[1747930761781,0.27773429,111590.0,111580.0,1.11579085]
[1747930762008,0.19714986,111590.0,111580.0,1.11579085]
[1747930763206,0.19714986,111590.0,111580.0,0.48695085]
[1747930763420,0.19714986,111590.0,111580.0,1.11579085]
[1747930765886,0.19714986,111590.0,111580.0,1.30499661]
[1747930766469,0.19714986,111590.0,111580.0,1.12575302]
[1747930766700,0.18818881,111590.0,111580.0,1.30499661]
[1747930767097,0.18818881,111590.0,111580.0,1.11679085]
[1747930767299,0.17922752,111590.0,111580.0,1.11679085]
[1747930767514,0.19098931,111590.0,111580.0,1.29603444]
[1747930767715,0.02688259,111590.0,111580.0,2.65216216]
[1747930767936,0.0358438,111590.0,111580.0,2.65216216]
[1747930768154,0.04480509,111590.0,111580.0,2.65216224]
[1747930768360,0.04480509,111590.0,111580.0,2.66112385]
[1747930768776,0.21507244,111590.0,111580.0,2.64320055]
[1747930769178,0.03584492,111590.0,111580.0,2.65216224]
[1747930769386,0.20611107,111590.0,111580.0,2.64320055]
[1747930769814,0.19715002,111590.0,111580.0,2.6342387]
[1747930770021,0.0179225,111590.0,111580.0,2.65216248]
[1747930770225,0.00896097,111590.0,111580.0,2.65016152]
[1747930770421,0.20611083,111590.0,111580.0,2.62327645]
[1747930770625,0.20611083,111590.0,111580.0,2.61431444]
[1747930770840,0.18818881,111590.0,111580.0,2.00949661]
[1747930771088,0.18818881,111590.0,111580.0,1.75993444]
[1747930771496,0.27773437,111590.0,111580.0,0.95185085]
[1747930771708,0.27773437,111590.0,111580.0,1.33019085]
[1747930772733,0.27773437,111590.0,111580.0,1.51839661]
[1747930773171,0.26877308,111590.0,111580.0,1.33015085]
[1747930774007,0.26877308,111590.0,111580.0,0.48595085]
[1747930774226,0.26877308,111590.0,111580.0,1.05195085]
[1747930774430,0.74160102,111590.0,111580.0,0.0330039]
[1747930774657,1.09160102,111590.0,111580.0,0.0330039]
[1747930774883,0.76890138,111590.0,111580.0,0.0330039]
[1747930775118,0.37410293,111590.0,111580.0,0.0330039]
[1747930775335,0.36810816,111590.0,111580.0,0.0330039]
[1747930775547,0.33670816,111590.0,111580.0,0.0330039]
[1747930775766,0.34311916,111590.0,111580.0,0.0330039]
[1747930775985,0.68311916,111590.0,111580.0,0.0320039]
[1747930776238,1.14677016,111590.0,111580.0,0.0320039]
[1747930776457,1.14922408,111590.0,111580.0,0.0320039]
[1747930776893,1.14922408,111590.0,111580.0,0.3006039]
[1747930777113,1.14922408,111590.0,111580.0,0.0320039]
[1747930777114,1.15511608,111590.0,111580.0,0.0320039]
[1747930777331,1.12822408,111590.0,111580.0,0.0320039]
[1747930777566,1.16957895,111590.0,111580.0,0.0320039]
[1747930777779,1.14556236,111590.0,111580.0,0.0320039]
[1747930777982,1.17058012,111590.0,111580.0,0.0320039]
[1747930778193,0.60968505,111570.0,111560.0,0.2686]
[1747930778404,1.12016763,111570.0,111560.0,0.2686]
[1747930778619,0.61528019,111560.0,111550.0,0.62888]
[1747930778830,1.05441439,111560.0,111550.0,4e-05]
[1747930779045,1.06441439,111560.0,111550.0,4e-05]
[1747930779458,1.0645654,111560.0,111550.0,4e-05]
[1747930779660,1.15408691,111560.0,111550.0,4e-05]
[1747930779863,1.16263299,111560.0,111550.0,4e-05]
[1747930781330,1.25700299,111560.0,111550.0,4e-05]
[1747930781542,1.16263299,111560.0,111550.0,4e-05]
[1747930782379,1.51222163,111560.0,111550.0,4e-05]
[1747930782593,1.16263299,111560.0,111550.0,4e-05]
[1747930783033,1.49222163,111560.0,111550.0,4e-05]
[1747930783236,1.49322163,111560.0,111550.0,4e-05]
[1747930783715,1.50390377,111560.0,111550.0,4e-05]
[1747930783920,1.50290377,111560.0,111550.0,4e-05]
[1747930784335,1.50590377,111560.0,111550.0,4e-05]
[1747930784978,0.82478569,111560.0,111550.0,4e-05]
[1747930785193,1.52396297,111560.0,111550.0,4e-05]
[1747930785408,0.61023809,111540.0,111530.0,1.01576]
[1747930785622,1.08563947,111540.0,111530.0,1.01576]
[1747930785865,1.08563947,111540.0,111530.0,1.01588]
[1747930785866,1.04937229,111540.0,111530.0,1.01588]
[1747930786763,1.05033752,111540.0,111530.0,1.01588]
[1747930786993,1.05033752,111540.0,111530.0,0.38676]
[1747930787216,1.13985903,111540.0,111530.0,1.01588]
[1747930787636,0.28774888,111540.0,111530.0,1.01588]
[1747930788302,0.28774888,111540.0,111530.0,0.38676]
[1747930788515,0.28774888,111540.0,111530.0,1.01592]
[1747930788753,0.30228973,111540.0,111530.0,1.01592]
[1747930788964,0.30828973,111540.0,111530.0,1.0258]
[1747930791750,0.31828973,111540.0,111530.0,1.02584]
[1747930792820,0.30828973,111540.0,111530.0,1.02584]
[1747930793017,0.29374888,111540.0,111530.0,1.02584]
[1747930794630,0.63374888,111540.0,111530.0,1.02584]
[1747930794851,0.64828973,111540.0,111530.0,1.02584]
[1747930794980,0.73363523,111540.0,111530.0,1.02584]
[1747930795197,0.76553523,111540.0,111530.0,1.02584]
[1747930795403,0.68018973,111540.0,111530.0,1.02584]
[1747930795637,0.68018973,111540.0,111530.0,1.02588]
[1747930796240,0.63374888,111540.0,111530.0,1.02588]
[1747930796444,0.67868973,111540.0,111530.0,1.02588]
[1747930796695,0.72048973,111540.0,111530.0,1.02588]
[1747930797020,0.81001124,111540.0,111530.0,1.02588]
[1747930797235,1.23175321,111540.0,111530.0,0.001]
[1747930797451,0.88216457,111540.0,111530.0,0.001]
[1747930797931,0.81001124,111540.0,111530.0,0.001]
[1747930798598,0.72048973,111540.0,111530.0,0.26976]
[1747930799633,0.19388087,111530.0,111520.0,0.36936]
[1747930799845,0.31422643,111530.0,111520.0,0.36936]
[1747930799997,0.20633208,111470.0,111460.0,0.1883012]
[1747930800274,0.19736227,111470.0,111460.0,1.88660793]
[1747930800515,0.19736227,111470.0,111460.0,1.10713137]
[1747930800746,0.28690783,111470.0,111460.0,1.02512]
[1747930801414,0.28690783,111470.0,111460.0,1.02562541]
[1747930801660,0.68724852,111470.0,111460.0,1.02562541]
[1747930801884,0.6406173,111470.0,111460.0,0.38750541]
[1747930802112,0.65811816,111470.0,111460.0,1.03362541]
[1747930802558,0.65811816,111470.0,111460.0,0.39550541]
[1747930802809,0.65811816,111470.0,111460.0,1.03362541]
[1747930803021,0.65911816,111470.0,111460.0,1.03862541]
[1747930803266,0.80587041,111470.0,111460.0,0.76986541]
[1747930803497,1.1789999,111470.0,111460.0,1.03366541]
[1747930803723,0.82941126,111470.0,111460.0,1.03366541]
[1747930803951,0.74555901,111470.0,111460.0,1.02566541]
[1747930804188,0.70545901,111470.0,111460.0,0.38750541]
[1747930804419,0.71545901,111470.0,111460.0,1.02574541]
[1747930804669,0.67365901,111470.0,111460.0,1.02574541]
[1747930804885,0.67365901,111470.0,111460.0,1.03074541]
[1747930805447,0.67365901,111470.0,111460.0,1.02574541]
[1747930805448,0.76209204,111470.0,111460.0,1.02574541]
[1747930805620,0.71425901,111470.0,111460.0,1.02874541]
[1747930806714,0.71425901,111470.0,111460.0,1.02882541]
[1747930806926,0.65911816,111470.0,111460.0,1.02882541]
[1747930807396,0.28790783,111470.0,111460.0,1.02882541]
[1747930808059,0.28790783,111470.0,111460.0,0.39050541]
[1747930808295,0.28790783,111470.0,111460.0,1.02882541]
[1747930809449,0.30375308,111470.0,111460.0,1.02882541]
[1747930809610,0.31689825,111470.0,111460.0,1.02882541]
[1747930809813,0.3722391,111470.0,111460.0,1.02886541]
[1747930810749,0.35639385,111470.0,111460.0,1.04170541]
[1747930811001,0.37253135,111470.0,111460.0,1.04170541]
[1747930811965,0.40323135,111470.0,111460.0,1.04170541]
[1747930812354,0.3171905,111470.0,111460.0,1.04170541]
[1747930812562,0.3171905,111470.0,111460.0,1.04174541]
[1747930813228,0.3503905,111470.0,111460.0,1.04174541]
[1747930813911,0.37493135,111470.0,111460.0,1.04174541]
[1747930814134,0.40723135,111470.0,111460.0,1.04174541]
[1747930814385,0.40723135,111470.0,111460.0,1.0398924]
[1747930815252,0.37493135,111470.0,111460.0,1.0398924]
[1747930815715,0.30404533,111470.0,111460.0,1.0699924]
[1747930815921,0.28790783,111470.0,111460.0,1.0699924]
[1747930816336,0.28790783,111470.0,111460.0,1.1005924]
[1747930817009,0.28790783,111470.0,111460.0,1.1006724]
[1747930817449,0.28790783,111470.0,111460.0,1.09975717]
[1747930819431,0.00997037,111470.0,111460.0,2.96638823]
[1747930819932,0.19732854,111490.0,111480.0,0.00897021]
[1747930820149,0.2868741,111490.0,111480.0,0.33232]
[1747930820375,0.19736195,111470.0,111460.0,0.42077717]
[1747930820592,0.19736195,111470.0,111460.0,0.80313717]
[1747930820593,0.28690751,111470.0,111460.0,0.80313717]
[1747930820805,0.28690751,111470.0,111460.0,1.07205717]
[1747930821060,0.28790751,111470.0,111460.0,1.07295717]
[1747930821277,0.28790751,111470.0,111460.0,1.07242]
[1747930821489,0.28790751,111470.0,111460.0,0.80346]
[1747930821716,0.28790751,111470.0,111460.0,1.07238]
[1747930821928,0.28790751,111470.0,111460.0,1.04144]
[1747930822170,0.28790751,111470.0,111460.0,1.04444]
[1747930824152,0.28790751,111470.0,111460.0,1.07494]
[1747930824364,0.28790751,111470.0,111460.0,0.42374]
[1747930824578,0.28790751,111470.0,111460.0,1.07494]
[1747930827673,0.28790751,111470.0,111460.0,1.04444]
[1747930828355,0.33274836,111470.0,111460.0,1.04444]
[1747930829315,0.33174836,111470.0,111460.0,1.03844]
[1747930829750,0.33174836,111470.0,111460.0,1.03944]
[1747930829968,0.34029201,111470.0,111460.0,1.04044]
[1747930830687,0.29545116,111470.0,111460.0,0.38924]
[1747930830919,0.29545116,111470.0,111460.0,0.7716]
[1747930830920,0.43524722,111470.0,111460.0,0.7716]
[1747930831156,0.43524722,111470.0,111460.0,1.04052]
[1747930831397,0.785518,111470.0,111460.0,1.04052]
[1747930832270,1.125518,111470.0,111460.0,1.04052]
[1747930832463,1.15062214,111470.0,111460.0,1.04052]
[1747930832691,1.15062214,111470.0,111460.0,0.7706]
[1747930832838,1.15062214,111470.0,111460.0,1.03852]
[1747930833249,1.15462214,111470.0,111460.0,0.3824]
[1747930833466,1.10186693,111470.0,111460.0,4e-05]
[1747930833873,1.07676279,111470.0,111460.0,4e-05]
[1747930834075,1.10187912,111470.0,111460.0,4e-05]
[1747930834976,1.11611409,111470.0,111460.0,4e-05]
[1747930835123,1.12611409,111470.0,111460.0,4e-05]
[1747930835321,1.2156356,111470.0,111460.0,4e-05]
[1747930835897,1.4845556,111470.0,111460.0,4e-05]
[1747930836143,1.5688856,111470.0,111460.0,4e-05]
[1747930836571,1.56666231,111470.0,111460.0,4e-05]
[1747930836774,1.54196849,111470.0,111460.0,4e-05]
[1747930836975,1.59304285,111470.0,111460.0,4e-05]
[1747930837185,0.54294907,111460.0,111450.0,4e-05]
[1747930837406,1.16032111,111460.0,111450.0,9.052e-05]
[1747930838273,1.18314746,111460.0,111450.0,9.052e-05]
[1747930838703,1.20584128,111460.0,111450.0,9.052e-05]
[1747930839133,1.21584128,111460.0,111450.0,9.052e-05]
[1747930839374,1.30017128,111460.0,111450.0,9.052e-05]
[1747930839594,0.54296598,111450.0,111440.0,0.002]
[1747930839830,0.58267364,111430.0,111420.0,0.00204]
[1747930840056,0.20111586,111420.0,111400.0,0.05204]
[1747930840283,0.66386142,111420.0,111400.0,0.05204]
[1747930840498,0.67840227,111420.0,111400.0,0.05204]
[1747930840996,1.04440728,111420.0,111400.0,0.70732]
[1747930841252,1.04440728,111420.0,111400.0,0.05204]
[1747930841484,1.07810728,111420.0,111410.0,0.0046392]
[1747930841721,1.07810728,111420.0,111410.0,0.00150544]
[1747930841970,1.08010728,111420.0,111410.0,0.00150544]
[1747930842646,1.08865093,111420.0,111410.0,0.00150544]
[1747930842859,0.67516229,111420.0,111410.0,0.00150544]
[1747930843081,1.14577244,111420.0,111410.0,0.00150544]
[1747930843287,1.16877244,111420.0,111410.0,0.00150544]
[1747930844189,1.18199326,111420.0,111410.0,0.00150544]
[1747930844404,1.19199326,111420.0,111410.0,0.00150544]
[1747930844850,1.17557689,111420.0,111410.0,0.00150544]
[1747930845308,1.17627228,111420.0,111410.0,0.00150544]
[1747930845548,1.17363228,111420.0,111410.0,0.00150544]
[1747930845789,0.82404364,111420.0,111410.0,0.00150544]
[1747930846022,1.19864987,111420.0,111410.0,0.00150544]
[1747930846244,1.17363228,111420.0,111410.0,0.00150544]
[1747930846683,0.55303363,111410.0,111400.0,0.05204]
[1747930846911,0.60745055,111400.0,111390.0,4e-05]
[1747930847136,0.60745055,111400.0,111390.0,9.05e-05]
[1747930847137,1.39617339,111400.0,111390.0,9.05e-05]